Workbook

Sheet Типы окон Секция 1
F2: Факт | H2: Смонтировано (рама) | J2: Смонтировано (рама, стеклопакет) | L2: Смонтировано (полностью)
B3: Тип окна | C3: Ширина, м | D3: Высота, м | E3: S, м² | F3: Количество, шт. | G3: S, м², общая | H3: Количество, шт. | I3: S, м², общая | J3: Количество, шт. | K3: S, м², общая | L3: Количество, шт. | M3: S, м², общая
B4: Окна
B5: ОК-8.1.1 | C5: 2.15 | D5: =1.95-0.03 -> 1.92 | E5: =C5*D5 -> 4.128 | F5: =COUNTIF('Расстановка Секция 1'!$D$4:$AK$46,B5) -> 198 | G5: =ROUND( $E5*F5,2) -> 817.34 | H5: =ux('Расстановка Секция 1'!$D$4:$AK$46,$B5,H$2) -> 0 | I5: =$E5*H5 -> 0 | J5: =ux('Расстановка Секция 1'!$D$4:$AK$46,$B5,J$2) -> 4 | K5: =$E5*J5 -> 16.512 | M5: =$E5*L5 -> 0
B6: ОК-8.2.1 | C6: 2.15 | D6: =1.95-0.03 -> 1.92 | E6: 4.128 | F6: =COUNTIF('Расстановка Секция 1'!$D$4:$AK$46,B6) -> 162 | G6: =ROUND( $E6*F6,2) -> 668.74 | H6: =ux('Расстановка Секция 1'!$D$4:$AK$46,$B6,H$2) -> 0 | I6: =$E6*H6 -> 0 | J6: =ux('Расстановка Секция 1'!$D$4:$AK$46,$B6,J$2) -> 0 | K6: 0 | M6: 0
B7: ОК-9.1 | C7: =2.875+0.425 -> 3.3 | D7: 1.92 | E7: 6.336 | F7: =COUNTIF('Расстановка Секция 1'!$D$4:$AK$46,B7) -> 22 | G7: 139.39 | H7: =ux('Расстановка Секция 1'!$D$4:$AK$46,$B7,H$2) -> 0 | I7: 0 | J7: =ux('Расстановка Секция 1'!$D$4:$AK$46,$B7,J$2) -> 0 | K7: 0 | M7: 0
B8: ОК-9.2 | C8: =2.875+0.425 -> 3.3 | D8: 1.92 | E8: 6.336 | F8: =COUNTIF('Расстановка Секция 1'!$D$4:$AK$46,B8) -> 18 | G8: 114.05 | H8: =ux('Расстановка Секция 1'!$D$4:$AK$46,$B8,H$2) -> 0 | I8: 0 | J8: =ux('Расстановка Секция 1'!$D$4:$AK$46,$B8,J$2) -> 0 | K8: 0 | M8: 0
B9: ОК-11.1 | C9: 1.55 | D9: 1.92 | E9: 2.976 | F9: =COUNTIF('Расстановка Секция 1'!$D$4:$AK$46,B9) -> 22 | G9: 65.47 | H9: =ux('Расстановка Секция 1'!$D$4:$AK$46,$B9,H$2) -> 0 | I9: 0 | J9: =ux('Расстановка Секция 1'!$D$4:$AK$46,$B9,J$2) -> 0 | K9: 0 | M9: 0
B10: ОК-11.2 | C10: 1.55 | D10: 1.92 | E10: 2.976 | F10: =COUNTIF('Расстановка Секция 1'!$D$4:$AK$46,B10) -> 18 | G10: 53.57 | H10: =ux('Расстановка Секция 1'!$D$4:$AK$46,$B10,H$2) -> 0 | I10: 0 | J10: =ux('Расстановка Секция 1'!$D$4:$AK$46,$B10,J$2) -> 0 | K10: 0 | M10: 0
B11: ОК-18 | C11: 1.65 | D11: 1.92 | E11: 3.168 | F11: =COUNTIF('Расстановка Секция 1'!$D$4:$AK$46,B11) -> 12 | G11: 38.02 | H11: =ux('Расстановка Секция 1'!$D$4:$AK$46,$B11,H$2) -> 0 | I11: 0 | J11: =ux('Расстановка Секция 1'!$D$4:$AK$46,$B11,J$2) -> 0 | K11: 0 | M11: 0
B12: ОК-19 | C12: 0.75 | D12: =1.65-0.03 -> 1.62 | E12: 1.215 | F12: =COUNTIF('Расстановка Секция 1'!$D$4:$AK$46,B12) -> 12 | G12: 14.58 | H12: =ux('Расстановка Секция 1'!$D$4:$AK$46,$B12,H$2) -> 0 | I12: 0 | J12: =ux('Расстановка Секция 1'!$D$4:$AK$46,$B12,J$2) -> 0 | K12: 0 | M12: 0
B13: ОК-8.1.2 | C13: 2.15 | D13: =1.95-0.03 -> 1.92 | E13: 4.128 | F13: =COUNTIF('Расстановка Секция 1'!$D$4:$AK$46,B13) -> 44 | G13: 181.63 | H13: =ux('Расстановка Секция 1'!$D$4:$AK$46,$B13,H$2) -> 0 | I13: 0 | J13: =ux('Расстановка Секция 1'!$D$4:$AK$46,$B13,J$2) -> 0 | K13: 0 | M13: 0
B14: ОК-8.2.2 | C14: 2.15 | D14: =1.95-0.03 -> 1.92 | E14: 4.128 | F14: =COUNTIF('Расстановка Секция 1'!$D$4:$AK$46,B14) -> 36 | G14: 148.61 | H14: =ux('Расстановка Секция 1'!$D$4:$AK$46,$B14,H$2) -> 0 | I14: 0 | J14: =ux('Расстановка Секция 1'!$D$4:$AK$46,$B14,J$2) -> 0 | K14: 0 | M14: 0
B15: ОК-10.1 | C15: =2.625+1.425 -> 4.05 | D15: 1.92 | E15: 7.776 | F15: =COUNTIF('Расстановка Секция 1'!$D$4:$AK$46,B15) -> 22 | G15: 171.07 | H15: =ux('Расстановка Секция 1'!$D$4:$AK$46,$B15,H$2) -> 0 | I15: 0 | J15: =ux('Расстановка Секция 1'!$D$4:$AK$46,$B15,J$2) -> 0 | K15: 0 | M15: 0
B16: ОК-10.2 | C16: =2.625+1.425 -> 4.05 | D16: 1.92 | E16: 7.776 | F16: =COUNTIF('Расстановка Секция 1'!$D$4:$AK$46,B16) -> 18 | G16: 139.97 | H16: =ux('Расстановка Секция 1'!$D$4:$AK$46,$B16,H$2) -> 0 | I16: 0 | J16: =ux('Расстановка Секция 1'!$D$4:$AK$46,$B16,J$2) -> 0 | K16: 0 | M16: 0
B17: ОК-12.1 | C17: =2.625+2.125 -> 4.75 | D17: 1.92 | E17: 9.12 | F17: =COUNTIF('Расстановка Секция 1'!$D$4:$AK$46,B17) -> 22 | G17: 200.64 | H17: =ux('Расстановка Секция 1'!$D$4:$AK$46,$B17,H$2) -> 0 | I17: 0 | J17: =ux('Расстановка Секция 1'!$D$4:$AK$46,$B17,J$2) -> 0 | K17: 0 | M17: 0
B18: ОК-12.2 | C18: =2.625+2.125 -> 4.75 | D18: 1.92 | E18: 9.12 | F18: =COUNTIF('Расстановка Секция 1'!$D$4:$AK$46,B18) -> 18 | G18: 164.16 | H18: =ux('Расстановка Секция 1'!$D$4:$AK$46,$B18,H$2) -> 0 | I18: 0 | J18: =ux('Расстановка Секция 1'!$D$4:$AK$46,$B18,J$2) -> 0 | K18: 0 | M18: 0
B19: ОК-13 | C19: 1.05 | D19: 1.92 | E19: 2.016 | F19: =COUNTIF('Расстановка Секция 1'!$D$4:$AK$46,B19) -> 40 | G19: 80.64 | H19: =ux('Расстановка Секция 1'!$D$4:$AK$46,$B19,H$2) -> 0 | I19: 0 | J19: =ux('Расстановка Секция 1'!$D$4:$AK$46,$B19,J$2) -> 0 | K19: 0 | M19: 0
B20: Лоджии | H20: =ux('Расстановка Секция 1'!$D$4:$AK$46,$B20,H$2) -> 0
B21: ОК-150.1 | C21: 2.15 | D21: 1.92 | E21: 4.128 | F21: =COUNTIF('Расстановка Секция 1'!$D$4:$AK$46,B21) -> 22 | G21: 90.82 | H21: =ux('Расстановка Секция 1'!$D$4:$AK$46,$B21,H$2) -> 0 | I21: 0 | K21: =$E21*J21 -> 0 | M21: =$E21*L21 -> 0
B22: ОК-151.1 | C22: 2.15 | D22: 1.92 | E22: 4.128 | F22: =COUNTIF('Расстановка Секция 1'!$D$4:$AK$46,B22) -> 22 | G22: 90.82 | H22: =ux('Расстановка Секция 1'!$D$4:$AK$46,$B22,H$2) -> 0 | I22: 0 | K22: 0 | M22: 0
B23: ОК-152.1 | C23: 2.15 | D23: 1.92 | E23: 4.128 | F23: =COUNTIF('Расстановка Секция 1'!$D$4:$AK$46,B23) -> 22 | G23: 90.82 | H23: =ux('Расстановка Секция 1'!$D$4:$AK$46,$B23,H$2) -> 0 | I23: 0 | K23: 0 | M23: 0
B24: ОК-153.1 | C24: 1.85 | D24: 1.92 | E24: 3.552 | F24: =COUNTIF('Расстановка Секция 1'!$D$4:$AK$46,B24) -> 22 | G24: 78.14 | H24: =ux('Расстановка Секция 1'!$D$4:$AK$46,$B24,H$2) -> 4 | I24: 14.208 | K24: 0 | M24: 0
B25: ОК-150.2 | C25: 2.15 | D25: 1.92 | E25: 4.128 | F25: =COUNTIF('Расстановка Секция 1'!$D$4:$AK$46,B25) -> 18 | G25: 74.3 | H25: =ux('Расстановка Секция 1'!$D$4:$AK$46,$B25,H$2) -> 0 | I25: 0 | K25: 0 | M25: 0
B26: ОК-151.2 | C26: 2.15 | D26: 1.92 | E26: 4.128 | F26: =COUNTIF('Расстановка Секция 1'!$D$4:$AK$46,B26) -> 18 | G26: 74.3 | H26: =ux('Расстановка Секция 1'!$D$4:$AK$46,$B26,H$2) -> 0 | I26: 0 | K26: 0 | M26: 0
B27: ОК-150.2 | C27: 2.15 | D27: 1.92 | E27: 4.128 | F27: =COUNTIF('Расстановка Секция 1'!$D$4:$AK$46,B27) -> 18 | G27: 74.3 | H27: =ux('Расстановка Секция 1'!$D$4:$AK$46,$B27,H$2) -> 0 | I27: 0 | K27: 0 | M27: 0
B28: ОК-153.2 | C28: 1.85 | D28: 1.92 | E28: 3.552 | F28: =COUNTIF('Расстановка Секция 1'!$D$4:$AK$46,B28) -> 18 | G28: 63.94 | I28: 0 | K28: 0 | M28: 0
B29: ОК-156.1 | C29: 0.95 | D29: 1.92 | E29: 1.824 | F29: =COUNTIF('Расстановка Секция 1'!$D$4:$AK$46,B29) -> 22 | G29: 40.13 | I29: 0 | K29: 0 | M29: 0
B30: ОК-156.2 | C30: 0.95 | D30: 1.92 | E30: 1.824 | F30: =COUNTIF('Расстановка Секция 1'!$D$4:$AK$46,B30) -> 18 | G30: 32.83 | I30: 0 | K30: 0 | M30: 0
B31: ОК-154.1 | C31: 2.15 | D31: 1.92 | E31: 4.128 | F31: =COUNTIF('Расстановка Секция 1'!$D$4:$AK$46,B31) -> 22 | G31: 90.82 | I31: 0 | K31: 0 | M31: 0
B32: ОК-155.1 | C32: 2.15 | D32: 1.92 | E32: 4.128 | F32: =COUNTIF('Расстановка Секция 1'!$D$4:$AK$46,B32) -> 22 | G32: 90.82 | I32: 0 | K32: 0 | M32: 0
B33: ОК-171.1 | C33: 2.15 | D33: 1.92 | E33: 4.128 | F33: =COUNTIF('Расстановка Секция 1'!$D$4:$AK$46,B33) -> 22 | G33: 90.82 | I33: 0 | K33: 0 | M33: 0
B34: ОК-154.2 | C34: 2.15 | D34: 1.92 | E34: 4.128 | F34: =COUNTIF('Расстановка Секция 1'!$D$4:$AK$46,B34) -> 18 | G34: 74.3 | I34: 0 | K34: 0 | M34: 0
B35: ОК-155.2 | C35: 2.15 | D35: 1.92 | E35: 4.128 | F35: =COUNTIF('Расстановка Секция 1'!$D$4:$AK$46,B35) -> 18 | G35: 74.3 | I35: 0 | K35: 0 | M35: 0
B36: ОК-171.2 | C36: 2.15 | D36: 1.92 | E36: 4.128 | F36: =COUNTIF('Расстановка Секция 1'!$D$4:$AK$46,B36) -> 18 | G36: 74.3 | I36: 0 | K36: 0 | M36: 0
B37: Балконны блоки
B38: ББ-1 | C38: 0.95 | D38: =2.555-0.03 -> 2.525 | E38: 2.39875 | F38: =COUNTIF('Расстановка Секция 1'!$D$4:$AK$46,B38) -> 40 | G38: 95.95 | I38: 0 | K38: =$E38*J38 -> 0 | M38: =$E38*L38 -> 0
B39: ББ-3 | C39: 1.77 | D39: =2.555-0.03 -> 2.525 | E39: 4.46925 | F39: =COUNTIF('Расстановка Секция 1'!$D$4:$AK$46,B39) -> 40 | G39: 178.77 | I39: 0 | K39: 0 | M39: 0
B40: ББ-4 | C40: 1.82 | D40: 2.525 | E40: 4.5955 | F40: =COUNTIF('Расстановка Секция 1'!$D$4:$AK$46,B40) -> 9 | G40: 41.36 | I40: 0 | K40: 0 | M40: 0
B41: ББ-6 | C41: 1.47 | D41: 2.525 | E41: 3.71175 | F41: =COUNTIF('Расстановка Секция 1'!$D$4:$AK$46,B41) -> 40 | G41: 148.47 | I41: 0 | K41: 0 | M41: 0
B42: ББ-7 | C42: 1.42 | D42: 2.525 | E42: 3.5855 | F42: =COUNTIF('Расстановка Секция 1'!$D$4:$AK$46,B42) -> 40 | G42: 143.42 | I42: 0 | K42: 0 | M42: 0
B43: ББ-8 | C43: 2.27 | D43: 2.525 | E43: 5.73175 | F43: =COUNTIF('Расстановка Секция 1'!$D$4:$AK$46,B43) -> 40 | G43: 229.27 | I43: 0 | K43: 0 | M43: 0
B44: ББ-9 | C44: 1.27 | D44: 2.525 | E44: 3.20675 | F44: =COUNTIF('Расстановка Секция 1'!$D$4:$AK$46,B44) -> 40 | G44: 128.27 | I44: 0 | K44: 0 | M44: 0
B45: ББ-5 | C45: 1.82 | D45: 2.525 | E45: 4.5955 | F45: =COUNTIF('Расстановка Секция 1'!$D$4:$AK$46,B45) -> 40 | G45: 183.82 | I45: 0 | K45: 0 | M45: 0
B46: ББ-27 | C46: 1.87 | D46: 2.525 | E46: 4.72175 | F46: =COUNTIF('Расстановка Секция 1'!$D$4:$AK$46,B46) -> 31 | G46: 146.37 | I46: 0 | K46: 0 | M46: 0

Sheet Расстановка Секция 1
D3: 1/7-1/1 | N3: 1/Л-1/А | Y3: 1/1-1/4 | AB3: 1/Б-1/Д | AF3: 1/5-1/7 | AJ3: 1/Е-1/К
B4: =B5+3.15 -> 134.25 | C4: 43 этаж
B5: 131.1 | C5: 42 этаж
B6: 127.95 | C6: 41 этаж | D6: ОК-156.2 | E6: ББ-1 | F6: ОК-153.2 | G6: ББ-9 | H6: ОК-8.2.1 | I6: ОК-150.2 | J6: ББ-8 | K6: ОК-8.2.1 | L6: ОК-8.2.1 | M6: ОК-8.2.1 | N6: ОК-9.2 | O6: ОК-8.2.1 | P6: ОК-8.2.2 | Q6: ОК-171.2 | R6: ББ-5 | S6: ОК-154.2 | T6: ББ-27 | U6: ОК-8.2.2 | V6: ОК-155.2 | W6: ББ-3 | X6: ОК-8.2.1 | Y6: ОК-10.2 | Z6: ОК-8.2.1 | AA6: ОК-12.2 | AB6: ОК-8.2.1 | AC6: ОК-152.2 | AD6: ББ-6 | AE6: ОК-13 | AF6: ОК-151.2 | AG6: ББ-7 | AH6: ОК-11.2 | AI6: ОК-8.2.1 | AJ6: ОК-18 | AK6: ОК-19
B7: 124.8 | C7: 40 этаж | D7: ОК-156.2 | E7: ББ-1 | F7: ОК-153.2 | G7: ББ-9 | H7: ОК-8.2.1 | I7: ОК-150.2 | J7: ББ-8 | K7: ОК-8.2.1 | L7: ОК-8.2.1 | M7: ОК-8.2.1 | N7: ОК-9.2 | O7: ОК-8.2.1 | P7: ОК-8.2.2 | Q7: ОК-171.2 | R7: ББ-5 | S7: ОК-154.2 | T7: ББ-27 | U7: ОК-8.2.2 | V7: ОК-155.2 | W7: ББ-3 | X7: ОК-8.2.1 | Y7: ОК-10.2 | Z7: ОК-8.2.1 | AA7: ОК-12.2 | AB7: ОК-8.2.1 | AC7: ОК-152.2 | AD7: ББ-6 | AE7: ОК-13 | AF7: ОК-151.2 | AG7: ББ-7 | AH7: ОК-11.2 | AI7: ОК-8.2.1 | AJ7: ОК-18 | AK7: ОК-19
B8: 121.65 | C8: 39 этаж | D8: ОК-156.2 | E8: ББ-1 | F8: ОК-153.2 | G8: ББ-9 | H8: ОК-8.2.1 | I8: ОК-150.2 | J8: ББ-8 | K8: ОК-8.2.1 | L8: ОК-8.2.1 | M8: ОК-8.2.1 | N8: ОК-9.2 | O8: ОК-8.2.1 | P8: ОК-8.2.2 | Q8: ОК-171.2 | R8: ББ-5 | S8: ОК-154.2 | T8: ББ-27 | U8: ОК-8.2.2 | V8: ОК-155.2 | W8: ББ-3 | X8: ОК-8.2.1 | Y8: ОК-10.2 | Z8: ОК-8.2.1 | AA8: ОК-12.2 | AB8: ОК-8.2.1 | AC8: ОК-152.2 | AD8: ББ-6 | AE8: ОК-13 | AF8: ОК-151.2 | AG8: ББ-7 | AH8: ОК-11.2 | AI8: ОК-8.2.1 | AJ8: ОК-18 | AK8: ОК-19
B9: 118.5 | C9: 38 этаж | D9: ОК-156.2 | E9: ББ-1 | F9: ОК-153.2 | G9: ББ-9 | H9: ОК-8.2.1 | I9: ОК-150.2 | J9: ББ-8 | K9: ОК-8.2.1 | L9: ОК-8.2.1 | M9: ОК-8.2.1 | N9: ОК-9.2 | O9: ОК-8.2.1 | P9: ОК-8.2.2 | Q9: ОК-171.2 | R9: ББ-5 | S9: ОК-154.2 | T9: ББ-27 | U9: ОК-8.2.2 | V9: ОК-155.2 | W9: ББ-3 | X9: ОК-8.2.1 | Y9: ОК-10.2 | Z9: ОК-8.2.1 | AA9: ОК-12.2 | AB9: ОК-8.2.1 | AC9: ОК-152.2 | AD9: ББ-6 | AE9: ОК-13 | AF9: ОК-151.2 | AG9: ББ-7 | AH9: ОК-11.2 | AI9: ОК-8.2.1 | AJ9: ОК-18 | AK9: ОК-19
B10: 115.35 | C10: 37 этаж | D10: ОК-156.2 | E10: ББ-1 | F10: ОК-153.2 | G10: ББ-9 | H10: ОК-8.2.1 | I10: ОК-150.2 | J10: ББ-8 | K10: ОК-8.2.1 | L10: ОК-8.2.1 | M10: ОК-8.2.1 | N10: ОК-9.2 | O10: ОК-8.2.1 | P10: ОК-8.2.2 | Q10: ОК-171.2 | R10: ББ-5 | S10: ОК-154.2 | T10: ББ-27 | U10: ОК-8.2.2 | V10: ОК-155.2 | W10: ББ-3 | X10: ОК-8.2.1 | Y10: ОК-10.2 | Z10: ОК-8.2.1 | AA10: ОК-12.2 | AB10: ОК-8.2.1 | AC10: ОК-152.2 | AD10: ББ-6 | AE10: ОК-13 | AF10: ОК-151.2 | AG10: ББ-7 | AH10: ОК-11.2 | AI10: ОК-8.2.1 | AJ10: ОК-18 | AK10: ОК-19
B11: 112.2 | C11: 36 этаж | D11: ОК-156.2 | E11: ББ-1 | F11: ОК-153.2 | G11: ББ-9 | H11: ОК-8.2.1 | I11: ОК-150.2 | J11: ББ-8 | K11: ОК-8.2.1 | L11: ОК-8.2.1 | M11: ОК-8.2.1 | N11: ОК-9.2 | O11: ОК-8.2.1 | P11: ОК-8.2.2 | Q11: ОК-171.2 | R11: ББ-5 | S11: ОК-154.2 | T11: ББ-27 | U11: ОК-8.2.2 | V11: ОК-155.2 | W11: ББ-3 | X11: ОК-8.2.1 | Y11: ОК-10.2 | Z11: ОК-8.2.1 | AA11: ОК-12.2 | AB11: ОК-8.2.1 | AC11: ОК-152.2 | AD11: ББ-6 | AE11: ОК-13 | AF11: ОК-151.2 | AG11: ББ-7 | AH11: ОК-11.2 | AI11: ОК-8.2.1 | AJ11: ОК-18 | AK11: ОК-19
B12: 109.05 | C12: 35 этаж | D12: ОК-156.2 | E12: ББ-1 | F12: ОК-153.2 | G12: ББ-9 | H12: ОК-8.2.1 | I12: ОК-150.2 | J12: ББ-8 | K12: ОК-8.2.1 | L12: ОК-8.2.1 | M12: ОК-8.2.1 | N12: ОК-9.2 | O12: ОК-8.2.1 | P12: ОК-8.2.2 | Q12: ОК-171.2 | R12: ББ-5 | S12: ОК-154.2 | T12: ББ-27 | U12: ОК-8.2.2 | V12: ОК-155.2 | W12: ББ-3 | X12: ОК-8.2.1 | Y12: ОК-10.2 | Z12: ОК-8.2.1 | AA12: ОК-12.2 | AB12: ОК-8.2.1 | AC12: ОК-152.2 | AD12: ББ-6 | AE12: ОК-13 | AF12: ОК-151.2 | AG12: ББ-7 | AH12: ОК-11.2 | AI12: ОК-8.2.1 | AJ12: ОК-18 | AK12: ОК-19
B13: 105.9 | C13: 34 этаж | D13: ОК-156.2 | E13: ББ-1 | F13: ОК-153.2 | G13: ББ-9 | H13: ОК-8.2.1 | I13: ОК-150.2 | J13: ББ-8 | K13: ОК-8.2.1 | L13: ОК-8.2.1 | M13: ОК-8.2.1 | N13: ОК-9.2 | O13: ОК-8.2.1 | P13: ОК-8.2.2 | Q13: ОК-171.2 | R13: ББ-5 | S13: ОК-154.2 | T13: ББ-27 | U13: ОК-8.2.2 | V13: ОК-155.2 | W13: ББ-3 | X13: ОК-8.2.1 | Y13: ОК-10.2 | Z13: ОК-8.2.1 | AA13: ОК-12.2 | AB13: ОК-8.2.1 | AC13: ОК-152.2 | AD13: ББ-6 | AE13: ОК-13 | AF13: ОК-151.2 | AG13: ББ-7 | AH13: ОК-11.2 | AI13: ОК-8.2.1 | AJ13: ОК-18 | AK13: ОК-19
B14: 102.75 | C14: 33 этаж | D14: ОК-156.2 | E14: ББ-1 | F14: ОК-153.2 | G14: ББ-9 | H14: ОК-8.2.1 | I14: ОК-150.2 | J14: ББ-8 | K14: ОК-8.2.1 | L14: ОК-8.2.1 | M14: ОК-8.2.1 | N14: ОК-9.2 | O14: ОК-8.2.1 | P14: ОК-8.2.2 | Q14: ОК-171.2 | R14: ББ-5 | S14: ОК-154.2 | T14: ББ-27 | U14: ОК-8.2.2 | V14: ОК-155.2 | W14: ББ-3 | X14: ОК-8.2.1 | Y14: ОК-10.2 | Z14: ОК-8.2.1 | AA14: ОК-12.2 | AB14: ОК-8.2.1 | AC14: ОК-152.2 | AD14: ББ-6 | AE14: ОК-13 | AF14: ОК-151.2 | AG14: ББ-7 | AH14: ОК-11.2 | AI14: ОК-8.2.1 | AJ14: ОК-18 | AK14: ОК-19
B15: 99.6 | C15: 32 этаж | D15: ОК-156.2 | E15: ББ-1 | F15: ОК-153.2 | G15: ББ-9 | H15: ОК-8.2.1 | I15: ОК-150.2 | J15: ББ-8 | K15: ОК-8.2.1 | L15: ОК-8.2.1 | M15: ОК-8.2.1 | N15: ОК-9.2 | O15: ОК-8.2.1 | P15: ОК-8.2.2 | Q15: ОК-171.2 | R15: ББ-5 | S15: ОК-154.2 | T15: ББ-27 | U15: ОК-8.2.2 | V15: ОК-155.2 | W15: ББ-3 | X15: ОК-8.2.1 | Y15: ОК-10.2 | Z15: ОК-8.2.1 | AA15: ОК-12.2 | AB15: ОК-8.2.1 | AC15: ОК-152.2 | AD15: ББ-6 | AE15: ОК-13 | AF15: ОК-151.2 | AG15: ББ-7 | AH15: ОК-11.2 | AI15: ОК-8.2.1 | AJ15: ОК-18 | AK15: ОК-19
B16: 96.45 | C16: 31 этаж | D16: ОК-156.2 | E16: ББ-1 | F16: ОК-153.2 | G16: ББ-9 | H16: ОК-8.2.1 | I16: ОК-150.2 | J16: ББ-8 | K16: ОК-8.2.1 | L16: ОК-8.2.1 | M16: ОК-8.2.1 | N16: ОК-9.2 | O16: ОК-8.2.1 | P16: ОК-8.2.2 | Q16: ОК-171.2 | R16: ББ-5 | S16: ОК-154.2 | T16: ББ-27 | U16: ОК-8.2.2 | V16: ОК-155.2 | W16: ББ-3 | X16: ОК-8.2.1 | Y16: ОК-10.2 | Z16: ОК-8.2.1 | AA16: ОК-12.2 | AB16: ОК-8.2.1 | AC16: ОК-152.2 | AD16: ББ-6 | AE16: ОК-13 | AF16: ОК-151.2 | AG16: ББ-7 | AH16: ОК-11.2 | AI16: ОК-8.2.1 | AJ16: ОК-18 | AK16: ОК-19
B17: 93.3 | C17: 30 этаж | D17: ОК-156.2 | E17: ББ-1 | F17: ОК-153.2 | G17: ББ-9 | H17: ОК-8.2.1 | I17: ОК-150.2 | J17: ББ-8 | K17: ОК-8.2.1 | L17: ОК-8.2.1 | M17: ОК-8.2.1 | N17: ОК-9.2 | O17: ОК-8.2.1 | P17: ОК-8.2.2 | Q17: ОК-171.2 | R17: ББ-5 | S17: ОК-154.2 | T17: ББ-27 | U17: ОК-8.2.2 | V17: ОК-155.2 | W17: ББ-3 | X17: ОК-8.2.1 | Y17: ОК-10.2 | Z17: ОК-8.2.1 | AA17: ОК-12.2 | AB17: ОК-8.2.1 | AC17: ОК-152.2 | AD17: ББ-6 | AE17: ОК-13 | AF17: ОК-151.2 | AG17: ББ-7 | AH17: ОК-11.2 | AI17: ОК-8.2.1 | AJ17: ОК-18 | AK17: ОК-19
B18: 90.15 | C18: 29 этаж | D18: ОК-156.2 | E18: ББ-1 | F18: ОК-153.2 | G18: ББ-9 | H18: ОК-8.2.1 | I18: ОК-150.2 | J18: ББ-8 | K18: ОК-8.2.1 | L18: ОК-8.2.1 | M18: ОК-8.2.1 | N18: ОК-9.2 | O18: ОК-8.2.1 | P18: ОК-8.2.2 | Q18: ОК-171.2 | R18: ББ-5 | S18: ОК-154.2 | T18: ББ-27 | U18: ОК-8.2.2 | V18: ОК-155.2 | W18: ББ-3 | X18: ОК-8.2.1 | Y18: ОК-10.2 | Z18: ОК-8.2.1 | AA18: ОК-12.2 | AB18: ОК-8.2.1 | AC18: ОК-152.2 | AD18: ББ-6 | AE18: ОК-13 | AF18: ОК-151.2 | AG18: ББ-7 | AH18: ОК-11.2 | AI18: ОК-8.2.1
B19: 87 | C19: 28 этаж | D19: ОК-156.2 | E19: ББ-1 | F19: ОК-153.2 | G19: ББ-9 | H19: ОК-8.2.1 | I19: ОК-150.2 | J19: ББ-8 | K19: ОК-8.2.1 | L19: ОК-8.2.1 | M19: ОК-8.2.1 | N19: ОК-9.2 | O19: ОК-8.2.1 | P19: ОК-8.2.2 | Q19: ОК-171.2 | R19: ББ-5 | S19: ОК-154.2 | T19: ББ-27 | U19: ОК-8.2.2 | V19: ОК-155.2 | W19: ББ-3 | X19: ОК-8.2.1 | Y19: ОК-10.2 | Z19: ОК-8.2.1 | AA19: ОК-12.2 | AB19: ОК-8.2.1 | AC19: ОК-152.2 | AD19: ББ-6 | AE19: ОК-13 | AF19: ОК-151.2 | AG19: ББ-7 | AH19: ОК-11.2 | AI19: ОК-8.2.1
B20: 83.85 | C20: 27 этаж | D20: ОК-156.2 | E20: ББ-1 | F20: ОК-153.2 | G20: ББ-9 | H20: ОК-8.2.1 | I20: ОК-150.2 | J20: ББ-8 | K20: ОК-8.2.1 | L20: ОК-8.2.1 | M20: ОК-8.2.1 | N20: ОК-9.2 | O20: ОК-8.2.1 | P20: ОК-8.2.2 | Q20: ОК-171.2 | R20: ББ-5 | S20: ОК-154.2 | T20: ББ-27 | U20: ОК-8.2.2 | V20: ОК-155.2 | W20: ББ-3 | X20: ОК-8.2.1 | Y20: ОК-10.2 | Z20: ОК-8.2.1 | AA20: ОК-12.2 | AB20: ОК-8.2.1 | AC20: ОК-152.2 | AD20: ББ-6 | AE20: ОК-13 | AF20: ОК-151.2 | AG20: ББ-7 | AH20: ОК-11.2 | AI20: ОК-8.2.1
B21: 80.7 | C21: 26 этаж | D21: ОК-156.2 | E21: ББ-1 | F21: ОК-153.2 | G21: ББ-9 | H21: ОК-8.2.1 | I21: ОК-150.2 | J21: ББ-8 | K21: ОК-8.2.1 | L21: ОК-8.2.1 | M21: ОК-8.2.1 | N21: ОК-9.2 | O21: ОК-8.2.1 | P21: ОК-8.2.2 | Q21: ОК-171.2 | R21: ББ-5 | S21: ОК-154.2 | T21: ББ-27 | U21: ОК-8.2.2 | V21: ОК-155.2 | W21: ББ-3 | X21: ОК-8.2.1 | Y21: ОК-10.2 | Z21: ОК-8.2.1 | AA21: ОК-12.2 | AB21: ОК-8.2.1 | AC21: ОК-152.2 | AD21: ББ-6 | AE21: ОК-13 | AF21: ОК-151.2 | AG21: ББ-7 | AH21: ОК-11.2 | AI21: ОК-8.2.1
B22: 77.55 | C22: 25 этаж | D22: ОК-156.2 | E22: ББ-1 | F22: ОК-153.2 | G22: ББ-9 | H22: ОК-8.2.1 | I22: ОК-150.2 | J22: ББ-8 | K22: ОК-8.2.1 | L22: ОК-8.2.1 | M22: ОК-8.2.1 | N22: ОК-9.2 | O22: ОК-8.2.1 | P22: ОК-8.2.2 | Q22: ОК-171.2 | R22: ББ-5 | S22: ОК-154.2 | T22: ББ-27 | U22: ОК-8.2.2 | V22: ОК-155.2 | W22: ББ-3 | X22: ОК-8.2.1 | Y22: ОК-10.2 | Z22: ОК-8.2.1 | AA22: ОК-12.2 | AB22: ОК-8.2.1 | AC22: ОК-152.2 | AD22: ББ-6 | AE22: ОК-13 | AF22: ОК-151.2 | AG22: ББ-7 | AH22: ОК-11.2 | AI22: ОК-8.2.1
B23: 74.4 | C23: 24 этаж | D23: ОК-156.2 | E23: ББ-1 | F23: ОК-153.2 | G23: ББ-9 | H23: ОК-8.2.1 | I23: ОК-150.2 | J23: ББ-8 | K23: ОК-8.2.1 | L23: ОК-8.2.1 | M23: ОК-8.2.1 | N23: ОК-9.2 | O23: ОК-8.2.1 | P23: ОК-8.2.2 | Q23: ОК-171.2 | R23: ББ-5 | S23: ОК-154.2 | T23: ББ-27 | U23: ОК-8.2.2 | V23: ОК-155.2 | W23: ББ-3 | X23: ОК-8.2.1 | Y23: ОК-10.2 | Z23: ОК-8.2.1 | AA23: ОК-12.2 | AB23: ОК-8.2.1 | AC23: ОК-152.2 | AD23: ББ-6 | AE23: ОК-13 | AF23: ОК-151.2 | AG23: ББ-7 | AH23: ОК-11.2 | AI23: ОК-8.2.1
B24: 71.25 | C24: 23 этаж | D24: ОК-156.1 | E24: ББ-1 | F24: ОК-153.1 | G24: ББ-9 | H24: ОК-8.1.1 | I24: ОК-150.1 | J24: ББ-8 | K24: ОК-8.1.1 | L24: ОК-8.1.1 | M24: ОК-8.1.1 | N24: ОК-9.1 | O24: ОК-8.1.1 | P24: ОК-8.1.2 | Q24: ОК-171.1 | R24: ББ-5 | S24: ОК-154.1 | T24: ББ-27 | U24: ОК-8.1.2 | V24: ОК-155.1 | W24: ББ-3 | X24: ОК-8.1.1 | Y24: ОК-10.1 | Z24: ОК-8.1.1 | AA24: ОК-12.1 | AB24: ОК-8.1.1 | AC24: ОК-152.1 | AD24: ББ-6 | AE24: ОК-13 | AF24: ОК-151.1 | AG24: ББ-7 | AH24: ОК-11.1 | AI24: ОК-8.1.1
B25: 68.1 | C25: 22 этаж | D25: ОК-156.1 | E25: ББ-1 | F25: ОК-153.1 | G25: ББ-9 | H25: ОК-8.1.1 | I25: ОК-150.1 | J25: ББ-8 | K25: ОК-8.1.1 | L25: ОК-8.1.1 | M25: ОК-8.1.1 | N25: ОК-9.1 | O25: ОК-8.1.1 | P25: ОК-8.1.2 | Q25: ОК-171.1 | R25: ББ-5 | S25: ОК-154.1 | T25: ББ-27 | U25: ОК-8.1.2 | V25: ОК-155.1 | W25: ББ-3 | X25: ОК-8.1.1 | Y25: ОК-10.1 | Z25: ОК-8.1.1 | AA25: ОК-12.1 | AB25: ОК-8.1.1 | AC25: ОК-152.1 | AD25: ББ-6 | AE25: ОК-13 | AF25: ОК-151.1 | AG25: ББ-7 | AH25: ОК-11.1 | AI25: ОК-8.1.1
B26: 64.95 | C26: 21 этаж | D26: ОК-156.1 | E26: ББ-1 | F26: ОК-153.1 | G26: ББ-9 | H26: ОК-8.1.1 | I26: ОК-150.1 | J26: ББ-8 | K26: ОК-8.1.1 | L26: ОК-8.1.1 | M26: ОК-8.1.1 | N26: ОК-9.1 | O26: ОК-8.1.1 | P26: ОК-8.1.2 | Q26: ОК-171.1 | R26: ББ-5 | S26: ОК-154.1 | T26: ББ-27 | U26: ОК-8.1.2 | V26: ОК-155.1 | W26: ББ-3 | X26: ОК-8.1.1 | Y26: ОК-10.1 | Z26: ОК-8.1.1 | AA26: ОК-12.1 | AB26: ОК-8.1.1 | AC26: ОК-152.1 | AD26: ББ-6 | AE26: ОК-13 | AF26: ОК-151.1 | AG26: ББ-7 | AH26: ОК-11.1 | AI26: ОК-8.1.1
B27: 61.8 | C27: 20 этаж | D27: ОК-156.1 | E27: ББ-1 | F27: ОК-153.1 | G27: ББ-9 | H27: ОК-8.1.1 | I27: ОК-150.1 | J27: ББ-8 | K27: ОК-8.1.1 | L27: ОК-8.1.1 | M27: ОК-8.1.1 | N27: ОК-9.1 | O27: ОК-8.1.1 | P27: ОК-8.1.2 | Q27: ОК-171.1 | R27: ББ-5 | S27: ОК-154.1 | T27: ББ-27 | U27: ОК-8.1.2 | V27: ОК-155.1 | W27: ББ-3 | X27: ОК-8.1.1 | Y27: ОК-10.1 | Z27: ОК-8.1.1 | AA27: ОК-12.1 | AB27: ОК-8.1.1 | AC27: ОК-152.1 | AD27: ББ-6 | AE27: ОК-13 | AF27: ОК-151.1 | AG27: ББ-7 | AH27: ОК-11.1 | AI27: ОК-8.1.1
B28: 58.65 | C28: 19 этаж | D28: ОК-156.1 | E28: ББ-1 | F28: ОК-153.1 | G28: ББ-9 | H28: ОК-8.1.1 | I28: ОК-150.1 | J28: ББ-8 | K28: ОК-8.1.1 | L28: ОК-8.1.1 | M28: ОК-8.1.1 | N28: ОК-9.1 | O28: ОК-8.1.1 | P28: ОК-8.1.2 | Q28: ОК-171.1 | R28: ББ-5 | S28: ОК-154.1 | T28: ББ-27 | U28: ОК-8.1.2 | V28: ОК-155.1 | W28: ББ-3 | X28: ОК-8.1.1 | Y28: ОК-10.1 | Z28: ОК-8.1.1 | AA28: ОК-12.1 | AB28: ОК-8.1.1 | AC28: ОК-152.1 | AD28: ББ-6 | AE28: ОК-13 | AF28: ОК-151.1 | AG28: ББ-7 | AH28: ОК-11.1 | AI28: ОК-8.1.1
B29: 55.5 | C29: 18 этаж | D29: ОК-156.1 | E29: ББ-1 | F29: ОК-153.1 | G29: ББ-9 | H29: ОК-8.1.1 | I29: ОК-150.1 | J29: ББ-8 | K29: ОК-8.1.1 | L29: ОК-8.1.1 | M29: ОК-8.1.1 | N29: ОК-9.1 | O29: ОК-8.1.1 | P29: ОК-8.1.2 | Q29: ОК-171.1 | R29: ББ-5 | S29: ОК-154.1 | T29: ББ-27 | U29: ОК-8.1.2 | V29: ОК-155.1 | W29: ББ-3 | X29: ОК-8.1.1 | Y29: ОК-10.1 | Z29: ОК-8.1.1 | AA29: ОК-12.1 | AB29: ОК-8.1.1 | AC29: ОК-152.1 | AD29: ББ-6 | AE29: ОК-13 | AF29: ОК-151.1 | AG29: ББ-7 | AH29: ОК-11.1 | AI29: ОК-8.1.1
B30: 52.35 | C30: 17 этаж | D30: ОК-156.1 | E30: ББ-1 | F30: ОК-153.1 | G30: ББ-9 | H30: ОК-8.1.1 | I30: ОК-150.1 | J30: ББ-8 | K30: ОК-8.1.1 | L30: ОК-8.1.1 | M30: ОК-8.1.1 | N30: ОК-9.1 | O30: ОК-8.1.1 | P30: ОК-8.1.2 | Q30: ОК-171.1 | R30: ББ-5 | S30: ОК-154.1 | T30: ББ-27 | U30: ОК-8.1.2 | V30: ОК-155.1 | W30: ББ-3 | X30: ОК-8.1.1 | Y30: ОК-10.1 | Z30: ОК-8.1.1 | AA30: ОК-12.1 | AB30: ОК-8.1.1 | AC30: ОК-152.1 | AD30: ББ-6 | AE30: ОК-13 | AF30: ОК-151.1 | AG30: ББ-7 | AH30: ОК-11.1 | AI30: ОК-8.1.1
B31: 49.2 | C31: 16 этаж | D31: ОК-156.1 | E31: ББ-1 | F31: ОК-153.1 | G31: ББ-9 | H31: ОК-8.1.1 | I31: ОК-150.1 | J31: ББ-8 | K31: ОК-8.1.1 | L31: ОК-8.1.1 | M31: ОК-8.1.1 | N31: ОК-9.1 | O31: ОК-8.1.1 | P31: ОК-8.1.2 | Q31: ОК-171.1 | R31: ББ-5 | S31: ОК-154.1 | T31: ББ-27 | U31: ОК-8.1.2 | V31: ОК-155.1 | W31: ББ-3 | X31: ОК-8.1.1 | Y31: ОК-10.1 | Z31: ОК-8.1.1 | AA31: ОК-12.1 | AB31: ОК-8.1.1 | AC31: ОК-152.1 | AD31: ББ-6 | AE31: ОК-13 | AF31: ОК-151.1 | AG31: ББ-7 | AH31: ОК-11.1 | AI31: ОК-8.1.1
B32: 46.05 | C32: 15 этаж | D32: ОК-156.1 | E32: ББ-1 | F32: ОК-153.1 | G32: ББ-9 | H32: ОК-8.1.1 | I32: ОК-150.1 | J32: ББ-8 | K32: ОК-8.1.1 | L32: ОК-8.1.1 | M32: ОК-8.1.1 | N32: ОК-9.1 | O32: ОК-8.1.1 | P32: ОК-8.1.2 | Q32: ОК-171.1 | R32: ББ-5 | S32: ОК-154.1 | T32: ББ-27 | U32: ОК-8.1.2 | V32: ОК-155.1 | W32: ББ-3 | X32: ОК-8.1.1 | Y32: ОК-10.1 | Z32: ОК-8.1.1 | AA32: ОК-12.1 | AB32: ОК-8.1.1 | AC32: ОК-152.1 | AD32: ББ-6 | AE32: ОК-13 | AF32: ОК-151.1 | AG32: ББ-7 | AH32: ОК-11.1 | AI32: ОК-8.1.1
B33: 42.9 | C33: 14 этаж | D33: ОК-156.1 | E33: ББ-1 | F33: ОК-153.1 | G33: ББ-9 | H33: ОК-8.1.1 | I33: ОК-150.1 | J33: ББ-8 | K33: ОК-8.1.1 | L33: ОК-8.1.1 | M33: ОК-8.1.1 | N33: ОК-9.1 | O33: ОК-8.1.1 | P33: ОК-8.1.2 | Q33: ОК-171.1 | R33: ББ-5 | S33: ОК-154.1 | T33: ББ-27 | U33: ОК-8.1.2 | V33: ОК-155.1 | W33: ББ-3 | X33: ОК-8.1.1 | Y33: ОК-10.1 | Z33: ОК-8.1.1 | AA33: ОК-12.1 | AB33: ОК-8.1.1 | AC33: ОК-152.1 | AD33: ББ-6 | AE33: ОК-13 | AF33: ОК-151.1 | AG33: ББ-7 | AH33: ОК-11.1 | AI33: ОК-8.1.1
B34: 39.75 | C34: 13 этаж | D34: ОК-156.1 | E34: ББ-1 | F34: ОК-153.1 | G34: ББ-9 | H34: ОК-8.1.1 | I34: ОК-150.1 | J34: ББ-8 | K34: ОК-8.1.1 | L34: ОК-8.1.1 | M34: ОК-8.1.1 | N34: ОК-9.1 | O34: ОК-8.1.1 | P34: ОК-8.1.2 | Q34: ОК-171.1 | R34: ББ-5 | S34: ОК-154.1 | T34: ББ-27 | U34: ОК-8.1.2 | V34: ОК-155.1 | W34: ББ-3 | X34: ОК-8.1.1 | Y34: ОК-10.1 | Z34: ОК-8.1.1 | AA34: ОК-12.1 | AB34: ОК-8.1.1 | AC34: ОК-152.1 | AD34: ББ-6 | AE34: ОК-13 | AF34: ОК-151.1 | AG34: ББ-7 | AH34: ОК-11.1 | AI34: ОК-8.1.1
B35: 36.6 | C35: 12 этаж | D35: ОК-156.1 | E35: ББ-1 | F35: ОК-153.1 | G35: ББ-9 | H35: ОК-8.1.1 | I35: ОК-150.1 | J35: ББ-8 | K35: ОК-8.1.1 | L35: ОК-8.1.1 | M35: ОК-8.1.1 | N35: ОК-9.1 | O35: ОК-8.1.1 | P35: ОК-8.1.2 | Q35: ОК-171.1 | R35: ББ-5 | S35: ОК-154.1 | T35: ББ-27 | U35: ОК-8.1.2 | V35: ОК-155.1 | W35: ББ-3 | X35: ОК-8.1.1 | Y35: ОК-10.1 | Z35: ОК-8.1.1 | AA35: ОК-12.1 | AB35: ОК-8.1.1 | AC35: ОК-152.1 | AD35: ББ-6 | AE35: ОК-13 | AF35: ОК-151.1 | AG35: ББ-7 | AH35: ОК-11.1 | AI35: ОК-8.1.1
B36: 33.45 | C36: 11 этаж | D36: ОК-156.1 | E36: ББ-1 | F36: ОК-153.1 | G36: ББ-9 | H36: ОК-8.1.1 | I36: ОК-150.1 | J36: ББ-8 | K36: ОК-8.1.1 | L36: ОК-8.1.1 | M36: ОК-8.1.1 | N36: ОК-9.1 | O36: ОК-8.1.1 | P36: ОК-8.1.2 | Q36: ОК-171.1 | R36: ББ-5 | S36: ОК-154.1 | T36: ББ-27 | U36: ОК-8.1.2 | V36: ОК-155.1 | W36: ББ-3 | X36: ОК-8.1.1 | Y36: ОК-10.1 | Z36: ОК-8.1.1 | AA36: ОК-12.1 | AB36: ОК-8.1.1 | AC36: ОК-152.1 | AD36: ББ-6 | AE36: ОК-13 | AF36: ОК-151.1 | AG36: ББ-7 | AH36: ОК-11.1 | AI36: ОК-8.1.1
B37: 30.3 | C37: 10 этаж | D37: ОК-156.1 | E37: ББ-1 | F37: ОК-153.1 | G37: ББ-9 | H37: ОК-8.1.1 | I37: ОК-150.1 | J37: ББ-8 | K37: ОК-8.1.1 | L37: ОК-8.1.1 | M37: ОК-8.1.1 | N37: ОК-9.1 | O37: ОК-8.1.1 | P37: ОК-8.1.2 | Q37: ОК-171.1 | R37: ББ-5 | S37: ОК-154.1 | T37: ББ-4 | U37: ОК-8.1.2 | V37: ОК-155.1 | W37: ББ-3 | X37: ОК-8.1.1 | Y37: ОК-10.1 | Z37: ОК-8.1.1 | AA37: ОК-12.1 | AB37: ОК-8.1.1 | AC37: ОК-152.1 | AD37: ББ-6 | AE37: ОК-13 | AF37: ОК-151.1 | AG37: ББ-7 | AH37: ОК-11.1 | AI37: ОК-8.1.1
B38: 27.15 | C38: 9 этаж | D38: ОК-156.1 | E38: ББ-1 | F38: ОК-153.1 | G38: ББ-9 | H38: ОК-8.1.1 | I38: ОК-150.1 | J38: ББ-8 | K38: ОК-8.1.1 | L38: ОК-8.1.1 | M38: ОК-8.1.1 | N38: ОК-9.1 | O38: ОК-8.1.1 | P38: ОК-8.1.2 | Q38: ОК-171.1 | R38: ББ-5 | S38: ОК-154.1 | T38: ББ-4 | U38: ОК-8.1.2 | V38: ОК-155.1 | W38: ББ-3 | X38: ОК-8.1.1 | Y38: ОК-10.1 | Z38: ОК-8.1.1 | AA38: ОК-12.1 | AB38: ОК-8.1.1 | AC38: ОК-152.1 | AD38: ББ-6 | AE38: ОК-13 | AF38: ОК-151.1 | AG38: ББ-7 | AH38: ОК-11.1 | AI38: ОК-8.1.1
B39: 24 | C39: 8 этаж | D39: ОК-156.1 | E39: ББ-1 | F39: ОК-153.1 | G39: ББ-9 | H39: ОК-8.1.1 | I39: ОК-150.1 | J39: ББ-8 | K39: ОК-8.1.1 | L39: ОК-8.1.1 | M39: ОК-8.1.1 | N39: ОК-9.1 | O39: ОК-8.1.1 | P39: ОК-8.1.2 | Q39: ОК-171.1 | R39: ББ-5 | S39: ОК-154.1 | T39: ББ-4 | U39: ОК-8.1.2 | V39: ОК-155.1 | W39: ББ-3 | X39: ОК-8.1.1 | Y39: ОК-10.1 | Z39: ОК-8.1.1 | AA39: ОК-12.1 | AB39: ОК-8.1.1 | AC39: ОК-152.1 | AD39: ББ-6 | AE39: ОК-13 | AF39: ОК-151.1 | AG39: ББ-7 | AH39: ОК-11.1 | AI39: ОК-8.1.1
B40: 20.85 | C40: 7 этаж | D40: ОК-156.1 | E40: ББ-1 | F40: ОК-153.1 | G40: ББ-9 | H40: ОК-8.1.1 | I40: ОК-150.1 | J40: ББ-8 | K40: ОК-8.1.1 | L40: ОК-8.1.1 | M40: ОК-8.1.1 | N40: ОК-9.1 | O40: ОК-8.1.1 | P40: ОК-8.1.2 | Q40: ОК-171.1 | R40: ББ-5 | S40: ОК-154.1 | T40: ББ-4 | U40: ОК-8.1.2 | V40: ОК-155.1 | W40: ББ-3 | X40: ОК-8.1.1 | Y40: ОК-10.1 | Z40: ОК-8.1.1 | AA40: ОК-12.1 | AB40: ОК-8.1.1 | AC40: ОК-152.1 | AD40: ББ-6 | AE40: ОК-13 | AF40: ОК-151.1 | AG40: ББ-7 | AH40: ОК-11.1 | AI40: ОК-8.1.1
B41: 17.7 | C41: 6 этаж | D41: ОК-156.1 | E41: ББ-1 | F41: ОК-153.1 | G41: ББ-9 | H41: ОК-8.1.1 | I41: ОК-150.1 | J41: ББ-8 | K41: ОК-8.1.1 | L41: ОК-8.1.1 | M41: ОК-8.1.1 | N41: ОК-9.1 | O41: ОК-8.1.1 | P41: ОК-8.1.2 | Q41: ОК-171.1 | R41: ББ-5 | S41: ОК-154.1 | T41: ББ-4 | U41: ОК-8.1.2 | V41: ОК-155.1 | W41: ББ-3 | X41: ОК-8.1.1 | Y41: ОК-10.1 | Z41: ОК-8.1.1 | AA41: ОК-12.1 | AB41: ОК-8.1.1 | AC41: ОК-152.1 | AD41: ББ-6 | AE41: ОК-13 | AF41: ОК-151.1 | AG41: ББ-7 | AH41: ОК-11.1 | AI41: ОК-8.1.1
B42: 14.55 | C42: 5 этаж | D42: ОК-156.1 | E42: ББ-1 | F42: ОК-153.1 | G42: ББ-9 | H42: ОК-8.1.1 | I42: ОК-150.1 | J42: ББ-8 | K42: ОК-8.1.1 | L42: ОК-8.1.1 | M42: ОК-8.1.1 | N42: ОК-9.1 | O42: ОК-8.1.1 | P42: ОК-8.1.2 | Q42: ОК-171.1 | R42: ББ-5 | S42: ОК-154.1 | T42: ББ-4 | U42: ОК-8.1.2 | V42: ОК-155.1 | W42: ББ-3 | X42: ОК-8.1.1 | Y42: ОК-10.1 | Z42: ОК-8.1.1 | AA42: ОК-12.1 | AB42: ОК-8.1.1 | AC42: ОК-152.1 | AD42: ББ-6 | AE42: ОК-13 | AF42: ОК-151.1 | AG42: ББ-7 | AH42: ОК-11.1 | AI42: ОК-8.1.1
B43: =B44+3.15 -> 11.4 | C43: 4 этаж | D43: ОК-156.1 | E43: ББ-1 | F43: ОК-153.1 | G43: ББ-9 | H43: ОК-8.1.1 | I43: ОК-150.1 | J43: ББ-8 | K43: ОК-8.1.1 | L43: ОК-8.1.1 | M43: ОК-8.1.1 | N43: ОК-9.1 | O43: ОК-8.1.1 | P43: ОК-8.1.2 | Q43: ОК-171.1 | R43: ББ-5 | S43: ОК-154.1 | T43: ББ-4 | U43: ОК-8.1.2 | V43: ОК-155.1 | W43: ББ-3 | X43: ОК-8.1.1 | Y43: ОК-10.1 | Z43: ОК-8.1.1 | AA43: ОК-12.1 | AB43: ОК-8.1.1 | AC43: ОК-152.1 | AD43: ББ-6 | AE43: ОК-13 | AF43: ОК-151.1 | AG43: ББ-7 | AH43: ОК-11.1 | AI43: ОК-8.1.1
B44: 8.25 | C44: 3 этаж | D44: ОК-156.1 | E44: ББ-1 | F44: ОК-153.1 | G44: ББ-9 | H44: ОК-8.1.1 | I44: ОК-150.1 | J44: ББ-8 | K44: ОК-8.1.1 | L44: ОК-8.1.1 | M44: ОК-8.1.1 | N44: ОК-9.1 | O44: ОК-8.1.1 | P44: ОК-8.1.2 | Q44: ОК-171.1 | R44: ББ-5 | S44: ОК-154.1 | T44: ББ-4 | U44: ОК-8.1.2 | V44: ОК-155.1 | W44: ББ-3 | X44: ОК-8.1.1 | Y44: ОК-10.1 | Z44: ОК-8.1.1 | AA44: ОК-12.1 | AB44: ОК-8.1.1 | AC44: ОК-152.1 | AD44: ББ-6 | AE44: ОК-13 | AF44: ОК-151.1 | AG44: ББ-7 | AH44: ОК-11.1 | AI44: ОК-8.1.1
B45: 5.1 | C45: 2 этаж | D45: ОК-156.1 | E45: ББ-1 | F45: ОК-153.1 | G45: ББ-9 | H45: ОК-8.1.1 | I45: ОК-150.1 | J45: ББ-8 | K45: ОК-8.1.1 | L45: ОК-8.1.1 | M45: ОК-8.1.1 | N45: ОК-9.1 | O45: ОК-8.1.1 | P45: ОК-8.1.2 | Q45: ОК-171.1 | R45: ББ-5 | S45: ОК-154.1 | T45: ББ-4 | U45: ОК-8.1.2 | V45: ОК-155.1 | W45: ББ-3 | X45: ОК-8.1.1 | Y45: ОК-10.1 | Z45: ОК-8.1.1 | AA45: ОК-12.1 | AB45: ОК-8.1.1 | AC45: ОК-152.1 | AD45: ББ-6 | AE45: ОК-13 | AF45: ОК-151.1 | AG45: ББ-7 | AH45: ОК-11.1 | AI45: ОК-8.1.1
B46: 0 | C46: 1 этаж
E48: - установлена рама
E49: -установлена рама+стеклопакет
E50: -установлена рама+стеклопакет+фурнитура
